fUSD/lending_fUSD_20260611
["ID","MTS","AMOUNT","RATE_DAILY","PERIOD"]
[424757403,1781129449000,-300.0,0.00019984,2]
[424757420,1781129449000,-500.0,0.00019999,2]
[424757401,1781129449000,-752.94,0.00019658,2]
[424757405,1781129449000,-150.0,0.00019985,2]
[424757406,1781129449000,-3556.0,0.00019985,2]
[424757409,1781129449000,-1227.0,0.00019985,2]
[424757408,1781129449000,-382.0,0.00019985,2]
[424757412,1781129449000,-196.76169039,0.00019999,2]
[424757413,1781129449000,-500.0,0.00019999,2]
[424757414,1781129449000,-500.0,0.00019999,2]
[424757419,1781129449000,-500.0,0.00019999,2]
[424757416,1781129449000,-500.0,0.00019999,2]
[424757411,1781129449000,-300.0,0.00019999,2]
[424757407,1781129449000,-1274.0,0.00019985,2]
[424757442,1781129449000,-500.0,0.00019999,2]
[424757492,1781129449000,-652.2631735,0.000206,2]
[424757445,1781129449000,-561.62467039,0.00019999,2]
[424757472,1781129449000,-1170.68,0.0002,2]
[424757474,1781129449000,-356.0,0.0002,2]
[424757473,1781129449000,-1553.0,0.0002,2]
[424757478,1781129449000,-194.72792766,0.00020144,2]
[424757476,1781129449000,-300.0,0.000201,10]
[424757479,1781129449000,-218.05361821,0.00020144,2]
[424757477,1781129449000,-200.0,0.00020119,2]
[424757475,1781129449000,-1285.0,0.00020005,2]
[424757480,1781129449000,-151.0,0.00020144,2]
[424757491,1781129449000,-683.0,0.00020505,4]
[424757471,1781129449000,-1125.0,0.0002,2]
[424757481,1781129449000,-151.0,0.00020144,2]
[424757485,1781129449000,-1125.0,0.00020277,2]
[424757483,1781129449000,-2319.72410669,0.00020144,2]
[424757490,1781129449000,-1130.0,0.0002042,7]
[424757487,1781129449000,-652.2631735,0.000204,2]
[424757489,1781129449000,-200.0,0.000204,10]
[424757488,1781129449000,-217.34,0.000204,2]
[424757486,1781129449000,-416.8,0.00020381,2]
[424757493,1781129449000,-201.93286098,0.00020692,2]
[424757494,1781129449000,-151.0,0.00020692,2]
[424757440,1781129449000,-550.0,0.00019999,2]
[424757484,1781129449000,-652.2631735,0.000202,2]
[424757470,1781129449000,-3053.0,0.0002,2]
[424757482,1781129449000,-233.5188934,0.00020144,2]
[424757468,1781129449000,-152.86912565,0.0002,20]
[424757449,1781129449000,-3681.0,0.0002,2]
[424757469,1781129449000,-400.0,0.0002,2]
[424757446,1781129449000,-150.0,0.00019999,2]
[424757448,1781129449000,-1495.58100289,0.0002,5]
[424757452,1781129449000,-292.10435889,0.0002,5]
[424757450,1781129449000,-12940.2,0.0002,2]
[424757453,1781129449000,-217.0,0.0002,2]
[424757447,1781129449000,-652.2631735,0.0002,2]
[424757451,1781129449000,-297.95,0.0002,2]
[424757454,1781129449000,-907.0,0.0002,2]
[424757467,1781129449000,-298.0,0.0002,2]
[424757455,1781129449000,-321.0,0.0002,2]
[424757457,1781129449000,-1108.0,0.0002,2]
[424757456,1781129449000,-282.0,0.0002,2]
[424757461,1781129449000,-159.87833737,0.0002,2]
[424757466,1781129449000,-365.0,0.0002,2]
[424757462,1781129449000,-671.0,0.0002,2]
[424757463,1781129449000,-151.0,0.0002,2]
[424757459,1781129449000,-515.0,0.0002,2]
[424757458,1781129449000,-293.0,0.0002,2]
[424757465,1781129449000,-200.0,0.0002,10]
[424757460,1781129449000,-288.0,0.0002,2]
[424757464,1781129449000,-363.0,0.0002,2]
[424757532,1781129450000,-1000.0,0.000215,2]
[424757533,1781129450000,-1262.19175548,0.00021547,2]
[424757529,1781129450000,-1125.0,0.00021344,2]
[424757531,1781129450000,-309.0,0.000215,2]
[424757530,1781129450000,-316.0,0.000215,2]
[424757523,1781129450000,-747.80937859,0.00021239,2]
[424757526,1781129450000,-151.0,0.0002124,2]
[424757525,1781129450000,-151.0,0.0002124,2]
[424757528,1781129450000,-2494.55939288,0.0002124,2]
[424757534,1781129450000,-1170.68,0.00021678,2]
[424757540,1781129450000,-2586.85809042,0.00021788,2]
[424757535,1781129450000,-683.0,0.00021758,5]
[424757550,1781129450000,-1108.0,0.00022,2]
[424757537,1781129450000,-151.0,0.00021788,2]
[424757538,1781129450000,-151.0,0.00021788,2]
[424757539,1781129450000,-260.4103811,0.00021788,2]
[424757543,1781129450000,-5000.0,0.00021918,2]
[424757544,1781129450000,-150.0,0.00021918,2]
[424757541,1781129450000,-257.35,0.000219,7]
[424757542,1781129450000,-150.0,0.00021918,2]
[424757553,1781129450000,-288.0,0.00022,2]
[424757551,1781129450000,-293.0,0.00022,2]
[424757545,1781129450000,-300.0,0.00021999,2]
[424757548,1781129450000,-321.0,0.00022,2]
[424757520,1781129450000,-683.0,0.00021131,4]
[424757536,1781129450000,-217.15233878,0.00021788,2]
[424757522,1781129450000,-151.0,0.00021239,2]
[424757499,1781129450000,-805.0,0.00020859,5]
[424757527,1781129450000,-251.11897888,0.0002124,2]
[424757546,1781129450000,-217.0,0.00022,2]
[424757496,1781129450000,-242.15909246,0.00020692,2]
[424757497,1781129450000,-2405.55389863,0.00020692,2]
[424757501,1781129450000,-334.59,0.000209,2]
[424757500,1781129450000,-1003.0,0.00020859,5]
[424757503,1781129450000,-217.0,0.00021,2]
[424757495,1781129450000,-151.0,0.00020692,2]
[424757502,1781129450000,-300.0,0.00020999,2]
[424757504,1781129450000,-907.0,0.00021,2]
[424757498,1781129450000,-652.2631735,0.000208,2]
[424757506,1781129450000,-282.0,0.00021,2]
[424757516,1781129450000,-1125.0,0.00021,2]
[424757524,1781129450000,-209.40437684,0.0002124,2]
[424757507,1781129450000,-1108.0,0.00021,2]
[424757505,1781129450000,-321.0,0.00021,2]
[424757515,1781129450000,-298.0,0.00021,2]
[424757513,1781129450000,-363.0,0.00021,2]
[424757511,1781129450000,-151.0,0.00021,2]
[424757508,1781129450000,-293.0,0.00021,2]
[424757514,1781129450000,-365.0,0.00021,2]
[424757510,1781129450000,-288.0,0.00021,2]
[424757512,1781129450000,-187.354788,0.00021,2]
[424757517,1781129450000,-1553.0,0.00021,2]
[424757519,1781129450000,-2504.45,0.00021087,2]
[424757518,1781129450000,-356.0,0.00021,2]
[424757521,1781129450000,-599.60298507,0.00021239,2]
[424757509,1781129450000,-515.0,0.00021,2]
[424757547,1781129450000,-907.0,0.00022,2]
[424757592,1781129450000,-217.0,0.00023,2]
[424757549,1781129450000,-282.0,0.00022,2]
[424757582,1781129450000,-273.35166149,0.00022884,2]
[424757585,1781129450000,-270.91838368,0.00022984,2]
[424757587,1781129450000,-150.0,0.00022985,2]
[424757597,1781129450000,-293.0,0.00023,2]
[424757589,1781129450000,-1274.0,0.00022985,2]
[424757588,1781129450000,-3556.0,0.00022985,2]
[424757586,1781129450000,-150.0,0.00022985,2]
[424757594,1781129450000,-321.0,0.00023,2]
[424757609,1781129450000,-1170.68,0.00023355,7]
[424757590,1781129450000,-382.0,0.00022985,2]
[424757596,1781129450000,-1108.0,0.00023,2]
[424757591,1781129450000,-1227.0,0.00022985,2]
[424757593,1781129450000,-907.0,0.00023,2]
[424757595,1781129450000,-282.0,0.00023,2]
[424757607,1781129450000,-150.0,0.00023014,2]
[424757599,1781129450000,-288.0,0.00023,2]
[424757608,1781129450000,-150.0,0.00023288,2]
[424757603,1781129450000,-1125.0,0.00023,2]
[424757601,1781129450000,-365.0,0.00023,2]
[424757598,1781129450000,-515.0,0.00023,2]
[424757606,1781129450000,-683.0,0.0002301,6]
[424757605,1781129450000,-356.0,0.00023,2]
[424757604,1781129450000,-1553.0,0.00023,2]
[424757602,1781129450000,-298.0,0.00023,2]
[424757600,1781129450000,-363.0,0.00023,2]
[424757583,1781129450000,-374.69540824,0.00022884,2]
[424757579,1781129450000,-789.195755,0.00022777,7]
[424757552,1781129450000,-515.0,0.00022,2]
[424757584,1781129450000,-2781.82699784,0.00022884,2]
[424757555,1781129450000,-363.0,0.00022,2]
[424757554,1781129450000,-377508.1722672,0.00022,4]
[424757557,1781129450000,-298.0,0.00022,2]
[424757556,1781129450000,-365.0,0.00022,2]
[424757558,1781129450000,-450.0,0.00022,2]
[424757559,1781129450000,-1125.0,0.00022,2]
[424757561,1781129450000,-1553.0,0.00022,2]
[424757580,1781129450000,-371.390944,0.00022777,7]
[424757560,1781129450000,-225.8,0.00022,2]
[424757563,1781129450000,-225.18697532,0.00022336,2]
[424757565,1781129450000,-151.0,0.00022336,2]
[424757564,1781129450000,-250.12665989,0.00022336,2]
[424757570,1781129450000,-221.44826257,0.00022367,2]
[424757562,1781129450000,-356.0,0.00022,2]
[424757567,1781129450000,-2682.57183977,0.00022336,2]
[424757573,1781129450000,-1543.41,0.00022466,2]
[424757578,1781129450000,-350.0,0.00022669,4]
[424757576,1781129450000,-452.269,0.00022527,2]
[424757581,1781129450000,-233.5188934,0.00022884,2]
[424757575,1781129450000,-6075.0,0.00022527,2]
[424757577,1781129450000,-3643.0,0.00022527,2]
[424757571,1781129450000,-683.0,0.00022384,6]
[424757566,1781129450000,-270.0455652,0.00022336,2]
[424757569,1781129450000,-254.02786009,0.00022367,2]
[424757572,1781129450000,-1125.0,0.00022411,2]
[424757568,1781129450000,-416.8,0.00022353,2]
[424757574,1781129450000,-2186.52,0.00022466,2]
[424757649,1781129451000,-1000.0,0.00024658,2]
[424757653,1781129451000,-225.8,0.00024742,7]
[424757652,1781129451000,-217.34,0.000247,7]
[424757647,1781129451000,-213.0547083,0.00024657,2]
[424757646,1781129451000,-260.4103811,0.00024528,2]
[424757639,1781129451000,-300.0,0.00024249,2]
[424757640,1781129451000,-398435.1788815,0.0002425,2]
[424757641,1781129451000,-52868.9439957,0.0002425,2]
[424757643,1781129451000,-416.8,0.00024324,2]
[424757638,1781129451000,-151.0,0.00024247,7]
[424757642,1781129451000,-683.0,0.00024263,7]
[424757654,1781129451000,-683.0,0.00024889,8]
[424757661,1781129451000,-287.50203509,0.00025,2]
[424757648,1781129451000,-167.68371866,0.00024658,2]
[424757650,1781129451000,-170.1,0.00024658,2]
[424757656,1781129451000,-629.11802697,0.00025,5]
[424757655,1781129451000,-163.33638475,0.00025,15]
[424757658,1781129451000,-223.0,0.00025,2]
[424757660,1781129451000,-331.45963809,0.00025,2]
[424757657,1781129451000,-200.0,0.00025,30]
[424757659,1781129451000,-921.0,0.00025,2]
[424757662,1781129451000,-1118.0,0.00025,2]
[424757667,1781129451000,-302.73541846,0.00025,2]
[424757666,1781129451000,-382.0,0.00025,2]
[424757636,1781129451000,-356.0,0.00024,2]
[424757651,1781129451000,-150.0,0.00024658,2]
[424757635,1781129451000,-1553.0,0.00024,2]
[424757626,1781129451000,-1108.0,0.00024,2]
[424757644,1781129451000,-1262.19175548,0.00024427,2]
[424757664,1781129451000,-532.68090141,0.00025,2]
[424757611,1781129451000,-242.15909246,0.00023432,2]
[424757612,1781129451000,-2884.75459676,0.00023432,2]
[424757613,1781129451000,-159.83293482,0.00023532,2]
[424757618,1781129451000,-151.0,0.00023978,2]
[424757619,1781129451000,-775.4783256,0.00023978,2]
[424757614,1781129451000,-683.0,0.00023636,7]
[424757616,1781129451000,-197.0,0.00023877,10]
[424757617,1781129451000,-621.78829552,0.00023978,2]
[424757615,1781129451000,-189.89197078,0.0002379,2]
[424757620,1781129451000,-251.11897888,0.0002398,2]
[424757622,1781129451000,-217.0,0.00024,2]
[424757623,1781129451000,-907.0,0.00024,2]
[424757624,1781129451000,-321.0,0.00024,2]
[424757625,1781129451000,-282.0,0.00024,2]
[424757627,1781129451000,-293.0,0.00024,2]
[424757628,1781129451000,-515.0,0.00024,2]
[424757621,1781129451000,-2991.49051684,0.0002398,2]
[424757629,1781129451000,-307.26052505,0.00024,2]
[424757630,1781129451000,-363.0,0.00024,2]
[424757631,1781129451000,-365.0,0.00024,2]
[424757632,1781129451000,-298.0,0.00024,2]
[424757634,1781129451000,-1125.0,0.00024,2]
[424757633,1781129451000,-500.0,0.00024,2]
[424757645,1781129451000,-217.34,0.000245,7]
[424757637,1781129451000,-150.0,0.00024164,2]
[424757610,1781129451000,-192.06,0.00023425,2]
[424757665,1781129451000,-373.0,0.00025,2]
[424757668,1781129451000,-1132.0,0.00025,2]
[424757698,1781129451000,-416.8,0.00026296,2]
[424757700,1781129451000,-1164.202069,0.00026384,2]
[424757702,1781129451000,-1164.202069,0.00026384,2]
[424757705,1781129451000,-1164.202069,0.00026384,2]
[424757701,1781129451000,-1164.202069,0.00026384,2]
[424757707,1781129451000,-1164.202069,0.00026384,2]
[424757703,1781129451000,-1164.202069,0.00026384,2]
[424757706,1781129451000,-1164.202069,0.00026384,2]
[424757704,1781129451000,-1164.202069,0.00026384,2]
[424757710,1781129451000,-1164.202069,0.00026384,2]
[424757709,1781129451000,-1164.202069,0.00026384,2]
[424757711,1781129451000,-1164.202069,0.00026384,2]
[424757691,1781129451000,-243.571754,0.00026111,2]
[424757712,1781129451000,-1164.202069,0.00026384,2]
[424757716,1781129451000,-150.0,0.00026641,2]
[424757722,1781129451000,-683.0,0.00026768,10]
[424757721,1781129451000,-804.17102365,0.00026717,2]
[424757715,1781129451000,-300.0,0.00026638,10]
[424757718,1781129451000,-1170.68,0.0002671,7]
[424757720,1781129451000,-151.0,0.00026717,2]
[424757723,1781129451000,-182.0,0.00026917,2]
[424757717,1781129451000,-217.34,0.000267,7]
[424757713,1781129451000,-1164.202069,0.00026384,2]
[424757719,1781129451000,-644.79446245,0.00026717,2]
[424757724,1781129451000,-217.41178917,0.000273,30]
[424757663,1781129451000,-299.0,0.00025,2]
[424757714,1781129451000,-1164.202069,0.00026384,2]
[424757693,1781129451000,-243.571754,0.00026111,2]
[424757708,1781129451000,-1164.202069,0.00026384,2]
[424757694,1781129451000,-4182.0280254,0.00026111,2]
[424757695,1781129451000,-172985.4203338,0.00026111,2]
[424757674,1781129451000,-683.0,0.00025515,9]
[424757670,1781129451000,-368.0,0.00025,2]
[424757671,1781129451000,-1170.68,0.00025033,7]
[424757676,1781129451000,-3643.0,0.00025527,2]
[424757675,1781129451000,-6075.0,0.00025527,2]
[424757673,1781129451000,-150.0,0.00025373,2]
[424757672,1781129451000,-270.0455652,0.00025076,2]
[424757677,1781129451000,-404.72106295,0.00025624,2]
[424757678,1781129451000,-350.0,0.00025769,7]
[424757680,1781129451000,-151.0,0.00025982,7]
[424757679,1781129451000,-211.0,0.00025956,2]
[424757682,1781129451000,-150.0,0.00025985,2]
[424757669,1781129451000,-1566.0,0.00025,2]
[424757686,1781129451000,-1227.0,0.00025985,2]
[424757681,1781129451000,-300.0,0.00025984,10]
[424757699,1781129451000,-1164.202069,0.00026384,2]
[424757697,1781129451000,-683.0,0.00026141,9]
[424757692,1781129451000,-243.571754,0.00026111,2]
[424757690,1781129451000,-243.571754,0.00026111,2]
[424757685,1781129451000,-382.0,0.00025985,2]
[424757696,1781129451000,-1669.3507391,0.00026111,2]
[424757683,1781129451000,-3556.0,0.00025985,2]
[424757684,1781129451000,-1274.0,0.00025985,2]
[424757688,1781129451000,-550.0,0.00026,2]
[424757689,1781129451000,-150.0,0.00026028,2]
[424757687,1781129451000,-217.34,0.00026,7]
[424757759,1781129452000,-150.0,0.00027397,2]
[424757766,1781129452000,-150.0,0.00027397,2]
[424757764,1781129452000,-150.0,0.00027397,2]
[424757757,1781129452000,-150.0,0.00027397,2]
[424757768,1781129452000,-150.0,0.00027397,2]
[424757762,1781129452000,-150.0,0.00027397,2]
[424757760,1781129452000,-150.0,0.00027397,2]
[424757758,1781129452000,-150.0,0.00027397,2]
[424757756,1781129452000,-150.0,0.00027397,2]
[424757767,1781129452000,-150.0,0.00027397,2]
[424757761,1781129452000,-150.0,0.00027397,2]
[424757765,1781129452000,-150.0,0.00027397,2]
[424757774,1781129452000,-150.0,0.00027397,2]
[424757770,1781129452000,-150.0,0.00027397,2]
[424757769,1781129452000,-150.0,0.00027397,2]
[424757771,1781129452000,-150.0,0.00027397,2]
[424757773,1781129452000,-150.0,0.00027397,2]
[424757772,1781129452000,-150.0,0.00027397,2]
[424757775,1781129452000,-150.0,0.00027397,2]
[424757779,1781129452000,-150.0,0.00027397,2]
[424757777,1781129452000,-150.0,0.00027397,2]
[424757776,1781129452000,-150.0,0.00027397,2]
[424757778,1781129452000,-150.0,0.00027397,2]
[424757780,1781129452000,-150.0,0.00027397,2]
[424757753,1781129452000,-150.0,0.00027397,2]
[424757763,1781129452000,-150.0,0.00027397,2]
[424757755,1781129452000,-150.0,0.00027397,2]
[424757787,1781129452000,-150.0,0.00027397,2]
[424757752,1781129452000,-150.0,0.00027397,2]
[424757725,1781129452000,-1262.19175548,0.00027308,2]
[424757727,1781129452000,-151.0,0.00027397,2]
[424757728,1781129452000,-383.36895025,0.00027397,2]
[424757730,1781129452000,-500.0,0.00027397,2]
[424757729,1781129452000,-153.80113636,0.00027397,2]
[424757731,1781129452000,-500.0,0.00027397,2]
[424757734,1781129452000,-150.0,0.00027397,2]
[424757732,1781129452000,-500.0,0.00027397,2]
[424757733,1781129452000,-347.0,0.00027397,2]
[424757735,1781129452000,-150.0,0.00027397,2]
[424757737,1781129452000,-150.0,0.00027397,2]
[424757740,1781129452000,-150.0,0.00027397,2]
[424757754,1781129452000,-150.0,0.00027397,2]
[424757736,1781129452000,-150.0,0.00027397,2]
[424757738,1781129452000,-150.0,0.00027397,2]
[424757743,1781129452000,-150.0,0.00027397,2]
[424757739,1781129452000,-150.0,0.00027397,2]
[424757744,1781129452000,-150.0,0.00027397,2]
[424757741,1781129452000,-150.0,0.00027397,2]
[424757745,1781129452000,-150.0,0.00027397,2]
[424757746,1781129452000,-150.0,0.00027397,2]
[424757748,1781129452000,-150.0,0.00027397,2]
[424757747,1781129452000,-150.0,0.00027397,2]
[424757750,1781129452000,-150.0,0.00027397,2]
[424757749,1781129452000,-150.0,0.00027397,2]
[424757751,1781129452000,-150.0,0.00027397,2]
[424757742,1781129452000,-150.0,0.00027397,2]
[424757788,1781129452000,-150.0,0.00027397,2]
[424757726,1781129452000,-683.0,0.00027394,10]
[424757789,1781129452000,-150.0,0.00027397,2]
[424757816,1781129452000,-34482.27,0.00027397,10]
[424757814,1781129452000,-690.449836,0.00027397,2]
[424757813,1781129452000,-690.449836,0.00027397,2]
[424757820,1781129452000,-151.4848965,0.00027442,2]
[424757819,1781129452000,-285.76,0.000274,7]
[424757821,1781129452000,-169.93052837,0.00027442,2]
[424757823,1781129452000,-180.40608669,0.00027442,2]
[424757822,1781129452000,-150.76327732,0.00027442,2]
[424757825,1781129452000,-225.8,0.00027484,7]
[424757826,1781129452000,-671.0,0.000275,7]
[424757829,1781129452000,-500.0,0.000275,2]
[424757827,1781129452000,-500.0,0.000275,7]
[424757818,1781129452000,-150.0,0.00027397,2]
[424757828,1781129452000,-500.0,0.000275,2]
[424757832,1781129452000,-500.0,0.000275,2]
[424757831,1781129452000,-500.0,0.000275,2]
[424757833,1781129452000,-500.0,0.000275,2]
[424757841,1781129452000,-500.0,0.000275,2]
[424757834,1781129452000,-500.0,0.000275,2]
[424757836,1781129452000,-500.0,0.000275,2]
[424757838,1781129452000,-500.0,0.000275,2]
[424757835,1781129452000,-500.0,0.000275,2]
[424757840,1781129452000,-500.0,0.000275,2]
[424757839,1781129452000,-500.0,0.000275,2]
[424757837,1781129452000,-500.0,0.000275,2]
[424757784,1781129452000,-150.0,0.00027397,2]
[424757830,1781129452000,-500.0,0.000275,2]
[424757807,1781129452000,-690.449836,0.00027397,2]
[424757824,1781129452000,-151.24705612,0.00027442,2]
[424757815,1781129452000,-300.0,0.00027397,2]
[424757817,1781129452000,-28735.23,0.00027397,10]
[424757791,1781129452000,-150.0,0.00027397,2]
[424757786,1781129452000,-150.0,0.00027397,2]
[424757781,1781129452000,-150.0,0.00027397,2]
[424757782,1781129452000,-150.0,0.00027397,2]
[424757785,1781129452000,-150.0,0.00027397,2]
[424757790,1781129452000,-150.0,0.00027397,2]
[424757802,1781129452000,-690.449836,0.00027397,2]
[424757796,1781129452000,-151.0,0.00027397,2]
[424757803,1781129452000,-690.449836,0.00027397,2]
[424757793,1781129452000,-150.0,0.00027397,2]
[424757797,1781129452000,-151.0,0.00027397,2]
[424757804,1781129452000,-690.449836,0.00027397,2]
[424757800,1781129452000,-690.449836,0.00027397,2]
[424757783,1781129452000,-150.0,0.00027397,2]
[424757809,1781129452000,-690.449836,0.00027397,2]
[424757792,1781129452000,-150.0,0.00027397,2]
[424757798,1781129452000,-280.431674,0.00027397,2]
[424757805,1781129452000,-690.449836,0.00027397,2]
[424757801,1781129452000,-690.449836,0.00027397,2]
[424757795,1781129452000,-515.39,0.00027397,2]
[424757799,1781129452000,-690.449836,0.00027397,2]
[424757808,1781129452000,-690.449836,0.00027397,2]
[424757806,1781129452000,-690.449836,0.00027397,2]
[424757794,1781129452000,-1500.0,0.00027397,2]
[424757812,1781129452000,-690.449836,0.00027397,2]
[424757810,1781129452000,-690.449836,0.00027397,2]
[424757811,1781129452000,-690.449836,0.00027397,2]
[424757872,1781129453000,-500.0,0.000275,2]
[424757886,1781129453000,-154.8949609,0.00027545,2]
[424757873,1781129453000,-527.0,0.000275,2]
[424757885,1781129453000,-210.01517749,0.00027545,2]
[424757882,1781129453000,-159.78294909,0.00027545,2]
[424757875,1781129453000,-169.51097536,0.00027508,2]
[424757874,1781129453000,-171.77715591,0.00027508,2]
[424757870,1781129453000,-500.0,0.000275,2]
[424757876,1781129453000,-162.46710374,0.00027508,2]
[424757880,1781129453000,-175.91436318,0.00027545,2]
[424757878,1781129453000,-167.53418439,0.00027545,2]
[424757888,1781129453000,-161.2147491,0.00027545,2]
[424757877,1781129453000,-231.92268387,0.00027545,2]
[424757884,1781129453000,-171.56171484,0.00027545,2]
[424757892,1781129453000,-180.82186542,0.00027545,2]
[424757889,1781129453000,-179.53426733,0.00027545,2]
[424757890,1781129453000,-162.03871693,0.00027545,2]
[424757893,1781129453000,-151.07964961,0.00027545,2]
[424757883,1781129453000,-187.1888241,0.00027545,2]
[424757891,1781129453000,-160.54794585,0.00027545,2]
[424757894,1781129453000,-1895.39,0.0002755,30]
[424757896,1781129453000,-899.52,0.0002755,30]
[424757906,1781129453000,-778.22,0.00027641,2]
[424757895,1781129453000,-775.45,0.0002755,2]
[424757897,1781129453000,-752.38,0.0002755,30]
[424757898,1781129453000,-778.22,0.0002755,2]
[424757907,1781129453000,-159.62,0.00027671,30]
[424757887,1781129453000,-162.23121085,0.00027545,2]
[424757871,1781129453000,-500.0,0.000275,2]
[424757842,1781129453000,-500.0,0.000275,2]
[424757869,1781129453000,-500.0,0.000275,2]
[424757899,1781129453000,-1895.39,0.00027572,7]
[424757844,1781129453000,-500.0,0.000275,2]
[424757854,1781129453000,-500.0,0.000275,2]
[424757843,1781129453000,-500.0,0.000275,2]
[424757846,1781129453000,-500.0,0.000275,2]
[424757856,1781129453000,-500.0,0.000275,2]
[424757845,1781129453000,-500.0,0.000275,2]
[424757847,1781129453000,-500.0,0.000275,2]
[424757855,1781129453000,-500.0,0.000275,2]
[424757848,1781129453000,-500.0,0.000275,2]
[424757850,1781129453000,-500.0,0.000275,2]
[424757852,1781129453000,-500.0,0.000275,2]
[424757853,1781129453000,-500.0,0.000275,2]
[424757851,1781129453000,-500.0,0.000275,2]
[424757858,1781129453000,-500.0,0.000275,2]
[424757863,1781129453000,-500.0,0.000275,2]
[424757862,1781129453000,-500.0,0.000275,2]
[424757859,1781129453000,-500.0,0.000275,2]
[424757860,1781129453000,-500.0,0.000275,2]
[424757857,1781129453000,-500.0,0.000275,2]
[424757864,1781129453000,-500.0,0.000275,2]
[424757861,1781129453000,-500.0,0.000275,2]
[424757865,1781129453000,-500.0,0.000275,2]
[424757866,1781129453000,-500.0,0.000275,2]
[424757867,1781129453000,-500.0,0.000275,2]
[424757868,1781129453000,-500.0,0.000275,2]
[424757881,1781129453000,-267.90935631,0.00027545,2]
[424757879,1781129453000,-270.38004932,0.00027545,2]
[424757904,1781129453000,-778.22,0.00027611,30]
[424757849,1781129453000,-500.0,0.000275,2]
[424757902,1781129453000,-778.22,0.0002758,7]
[424757938,1781129453000,-180.37572735,0.00027928,2]
[424757939,1781129453000,-775.45,0.00027946,7]
[424757937,1781129453000,-778.22,0.00027916,2]
[424757942,1781129453000,-775.45,0.00027977,30]
[424757940,1781129453000,-778.22,0.00027946,7]
[424757941,1781129453000,-150.0,0.00027973,2]
[424757944,1781129453000,-600.0,0.00028,2]
[424757943,1781129453000,-778.22,0.00027977,30]
[424757946,1781129453000,-778.22,0.00028007,2]
[424757947,1781129453000,-683.0,0.0002802,11]
[424757948,1781129453000,-500.0,0.00028024,120]
[424757945,1781129453000,-775.45,0.00028007,2]
[424757949,1781129453000,-752.39,0.00028033,30]
[424757936,1781129453000,-775.45,0.00027916,2]
[424757964,1781129453000,-752.39,0.00028194,7]
[424757952,1781129453000,-778.22,0.00028038,7]
[424757955,1781129453000,-775.45,0.00028068,30]
[424757954,1781129453000,-899.52,0.00028053,7]
[424757953,1781129453000,-1895.39,0.00028053,7]
[424757951,1781129453000,-775.45,0.00028038,7]
[424757956,1781129453000,-778.22,0.00028068,30]
[424757958,1781129453000,-778.22,0.00028099,2]
[424757960,1781129453000,-285.76,0.000281,7]
[424757959,1781129453000,-284.95203121,0.000281,30]
[424757961,1781129453000,-775.59,0.0002813,7]